Workbook

Sheet main calculation
B1: Optimal number of candidates to interview
C2: for Figure 14.1 in Kuhn, P. Personnel Economics
F3: Baseline
F4: Values:
B5: Expected net productvity (u): | E5: 10.0 | F5: 10.0
B6: Standard deviation of productivity (σ): | E6: 2.5 | F6: 2.5 | I6: Optimal group size: | K6: =MAX(G13:G42) -> 4
B7: Application processing cost (c): | E7: 0.5 | F7: 0.5
B10: Number of | C10: Expected Net | D10: Total | E10: Expected
B11: applicants: | C11: Prod of Best | D11: Processing | E11: Profit
B12: (N) | C12: applicant: | D12: Costs (cN) | E12: E(Π)
B13: 1 | C13: =$E$5+$C$34*$E$6*LN(B13) -> 10.000 | D13: =$E$7*B13 -> 0.50 | E13: =C13-D13 -> 9.500 | G13: =IF(E13=MAX($E$13:$E$41),B13,0) -> 0
B14: =B13+1 -> 2 | C14: 11.351 | D14: =$E$7*B14 -> 1.00 | E14: =C14-D14 -> 10.351 | G14: 0
B15: 3 | C15: 12.141 | D15: 1.50 | E15: 10.641 | G15: 0
B16: 4 | C16: 12.702 | D16: 2.00 | E16: 10.702 | G16: 4
B17: 5 | C17: 13.137 | D17: 2.50 | E17: 10.637 | G17: 0
B18: 6 | C18: 13.493 | D18: 3.00 | E18: 10.493 | G18: 0
B19: 7 | C19: 13.793 | D19: 3.50 | E19: 10.293 | G19: 0
B20: 8 | C20: 14.053 | D20: 4.00 | E20: 10.053 | G20: 0
B21: 9 | C21: 14.283 | D21: 4.50 | E21: 9.783 | G21: 0
B22: 10 | C22: 14.488 | D22: 5.00 | E22: 9.488 | G22: 0
B23: 11 | C23: 14.674 | D23: 5.50 | E23: 9.174 | G23: 0
B24: 12 | C24: 14.844 | D24: 6.00 | E24: 8.844 | G24: 0
B25: 13 | C25: 15.000 | D25: 6.50 | E25: 8.500 | G25: 0
B26: 14 | C26: 15.144 | D26: 7.00 | E26: 8.144 | G26: 0
B27: 15 | C27: 15.279 | D27: 7.50 | E27: 7.779 | G27: 0
B28: 16 | C28: 15.404 | D28: 8.00 | E28: 7.404 | G28: 0
B29: 17 | C29: 15.523 | D29: 8.50 | E29: 7.023 | G29: 0
B30: 18 | C30: 15.634 | D30: 9.00 | E30: 6.634 | G30: 0
B31: 19 | C31: 15.739 | D31: 9.50 | E31: 6.239 | G31: 0
B32: 20 | C32: 15.839 | D32: 10.00 | E32: 5.839 | G32: 0
G33: 0
A34: k: | C34: =SQRT(6)/PI() -> 0.780 | G34: =IF(E34=MAX($E$13:$E$41),#REF!,0) -> 0
G35: =IF(E35=MAX($E$13:$E$41),#REF!,0) -> 0
A36: Main Lessons: | G36: =IF(E36=MAX($E$13:$E$41),#REF!,0) -> 0
B37: Expected net prod of best applicant increases at a diminishing rate with group size; processing costs increase linearly | G37: =IF(E37=MAX($E$13:$E$41),#REF!,0) -> 0
B38: Expected net prod of best applicant increases at a faster rate when variance is high | G38: =IF(E38=MAX($E$13:$E$41),#REF!,0) -> 0
B39: Optimal batch size increases with std deviation of candidate productivity, falls with application processing costs | G39: =IF(E39=MAX($E$13:$E$41),#REF!,0) -> 0
B40: If higher skill demands raise the mean and std deviation together, optimal batch size rises with skill | G40: =IF(E40=MAX($E$13:$E$41),#REF!,0) -> 0
G41: =IF(E41=MAX($E$13:$E$41),B41,0) -> 0
G42: =IF('cdf calculation'!F2=MAX($E$13:$E$41),'cdf calculation'!C2,0) -> 0

Sheet cdf calculation
B2: To give a sense of the Gumbel cdf for this u and σ (for the footnote):
B3: Euler's constant (gamma): | D3: 0.5772
C4: beta = | D4: ='main calculation'!E6*'main calculation'!C34 -> 1.949
C5: v= | D5: =10 - 2.5*'main calculation'!C34*D3 -> 8.875
C7: x | D7: e | E7: F(e)
C8: 1 | D8: =C8-$D$5 -> -7.875 | E8: =EXP(-EXP(-D8/$D$4)) -> 0.000
C9: =C8+1 -> 2 | D9: -6.875 | E9: 0.000
C10: 3 | D10: -5.875 | E10: 0.000
C11: 4 | D11: -4.875 | E11: 0.000
C12: 5 | D12: -3.875 | E12: 0.001
C13: 6 | D13: -2.875 | E13: 0.013
C14: 7 | D14: -1.875 | E14: 0.073
C15: 8 | D15: -0.875 | E15: 0.209
C16: 9 | D16: 0.125 | E16: 0.391
C17: 10 | D17: 1.125 | E17: 0.570
C18: 11 | D18: 2.125 | E18: 0.715
C19: 12 | D19: 3.125 | E19: 0.818
C20: 13 | D20: 4.125 | E20: 0.886
C21: 14 | D21: 5.125 | E21: 0.930
C22: 15 | D22: 6.125 | E22: 0.958
C23: 16 | D23: 7.125 | E23: 0.974
C24: 17 | D24: 8.125 | E24: 0.985
C25: 18 | D25: 9.125 | E25: 0.991
C26: 19 | D26: 10.125 | E26: 0.994
C27: 20 | D27: 11.125 | E27: 0.997
C30: Share of values between 8 and 12: | F30: =E19-E15 -> 0.609
C31: Share of values between 6 and 14: | F31: =E21-E13 -> 0.918

Sheet Sheet3
